bitfinex/quotes_ETHUSD_20240729
["timestamp","ask_amount","ask_price","bid_price","bid_amount"]
[1722261011830,2.97042,3366.6,3365.8,0.05941468]
[1722261012012,2.97012,3366.9,3365.6,2.485]
[1722261012213,0.11199385,3366.8,3365.6,2.485]
[1722261012436,2.97061,3366.4,3365.6,2.485]
[1722261012685,2.97071,3366.2,3365.6,2.485]
[1722261012853,2.97021,3366.8,3365.7,0.05941922]
[1722261013242,2.97002,3367.0,3365.8,0.60941306]
[1722261013445,2.97015,3366.9,3365.8,0.60941306]
[1722261013672,2.97006,3367.0,3365.8,0.60941306]
[1722261013848,3.0,3367.5,3365.8,0.60941306]
[1722261014045,2.9701,3366.9,3365.8,0.60941306]
[1722261014353,2.97002,3367.0,3365.8,0.60941306]
[1722261014568,2.96986,3367.2,3365.8,0.60941306]
[1722261014769,2.97001,3367.0,3365.8,0.60941306]
[1722261015083,2.97017,3366.9,3365.9,0.33429131]
[1722261015380,2.96968,3367.4,3366.1,2.2868]
[1722261015597,2.96983,3367.2,3366.2,0.05940455]
[1722261015752,2.96968,3367.4,3366.2,0.60940455]
[1722261015954,2.96968,3367.4,3366.3,0.34902468]
[1722261016276,2.9695,3367.6,3366.3,0.34902468]
[1722261016487,3.463,3368.2,3366.4,0.55]
[1722261016649,3.463,3368.2,3366.2,0.55]
[1722261016650,2.97006,3367.0,3366.2,0.55]
[1722261016862,2.97035,3366.7,3366.1,2.2868]
[1722261017042,3.463,3367.7,3366.1,2.2868]
[1722261017043,0.296988,3367.1,3366.1,2.2868]
[1722261017243,2.97067,3366.3,3365.6,7.286]
[1722261017567,0.296988,3367.1,3365.7,0.05941965]
[1722261017568,2.97022,3366.8,3365.7,0.05941965]
[1722261017780,2.97027,3366.7,3365.5,2.4516]
[1722261018071,2.97014,3366.9,3365.6,0.30457064]
[1722261018269,2.96997,3367.1,3365.7,2.334]
[1722261018608,3.0,3367.5,3365.7,2.334]
[1722261018789,2.96968,3367.4,3365.8,0.55]
[1722261018942,2.97028,3366.7,3365.7,2.334]
[1722261019140,2.97047,3366.5,3365.7,2.334]
[1722261019455,2.97047,3366.5,3365.0,10.2577]
[1722261019456,2.97019,3366.8,3365.1,2.334]
[1722261019660,2.97108,3365.8,3365.1,2.334]
[1722261019986,2.97133,3365.5,3365.1,2.334]
[1722261020337,2.9712,3365.7,3365.1,2.334]
[1722261020543,0.297108,3365.8,3365.1,2.334]
[1722261020738,2.97073,3366.2,3365.1,2.334]
[1722261020980,3.0,3366.8,3365.1,2.334]
[1722261020981,2.97062,3366.3,3365.2,0.05942718]
[1722261021194,3.0,3366.5,3365.3,0.55]
[1722261021195,2.97046,3366.5,3365.3,0.55]
[1722261021492,0.297046,3366.4,3365.4,0.05942106]
[1722261021646,2.97054,3366.4,3365.4,0.05942106]
[1722261021845,2.97072,3366.2,3365.4,0.05942106]
[1722261022087,2.97072,3366.2,3365.3,0.55]
[1722261022088,2.97036,3366.6,3365.3,0.55]
[1722261022243,0.296994,3367.0,3365.1,2.334]
[1722261022244,2.97115,3365.7,3365.1,2.334]
[1722261022639,2.97102,3365.9,3365.1,2.334]
[1722261022943,2.97102,3365.9,3365.2,0.2334]
[1722261023142,2.97072,3366.2,3365.2,0.29282426]
[1722261023385,7.31,3366.8,3365.5,2.3675]
[1722261023591,2.96992,3367.1,3365.6,0.05941093]
[1722261023834,3.138,3367.8,3365.7,2.3348]
[1722261024141,2.97002,3367.0,3365.8,0.60940585]
[1722261024287,2.97002,3367.0,3365.8,3.60940585]
[1722261024690,2.97018,3366.8,3365.8,3.55]
[1722261025133,2.96943,3367.7,3365.8,0.55]
[1722261025134,2.9701,3366.9,3365.8,0.55]
[1722261025326,2.9701,3366.9,3365.9,0.43591046]
[1722261025537,2.9699,3367.2,3366.0,0.55]
[1722261025746,2.96995,3367.1,3365.9,0.3764991]
[1722261025946,2.96995,3367.1,3365.7,2.3348]
[1722261025947,0.296995,3367.0,3365.7,2.3348]
[1722261026231,2.97031,3366.7,3365.7,2.3348]
[1722261026532,2.97037,3366.6,3365.7,2.3348]
[1722261026739,2.97081,3366.1,3365.7,2.3348]
[1722261026946,2.97071,3366.2,3365.7,2.3348]
[1722261027470,2.97057,3366.4,3365.7,2.3348]
[1722261027754,2.97072,3366.2,3365.7,2.56828]
[1722261028252,2.97057,3366.4,3365.7,2.56828]
[1722261028460,2.97064,3366.3,3365.7,2.56828]
[1722261028879,2.97046,3366.5,3365.7,2.56828]
[1722261029233,2.97024,3366.8,3365.7,2.56828]
[1722261029234,2.97027,3366.7,3365.7,2.56828]
[1722261029431,2.97035,3366.6,3365.8,0.31624727]
[1722261029987,2.97024,3366.8,3365.8,0.31624727]
[1722261030163,2.97001,3367.0,3365.9,0.55]
[1722261030475,1.02879858,3366.9,3366.0,0.05940819]
[1722261030682,3.99888858,3366.9,3366.0,0.05940819]
[1722261030976,2.96975,3367.3,3365.9,0.55]
[1722261031135,3.99859671,3367.2,3366.0,0.3141628]
[1722261031330,1.02874671,3367.1,3366.1,0.55]
[1722261031546,2.96985,3367.2,3366.1,0.55]
[1722261031750,1.02872068,3367.1,3366.1,0.55]
[1722261032047,2.97041,3366.6,3366.1,0.55]
[1722261032229,2.97041,3366.6,3365.7,2.3348]
[1722261032429,2.97062,3366.3,3365.7,2.3348]
[1722261032680,2.96981,3367.3,3365.7,2.3348]
[1722261032979,2.97032,3366.7,3365.7,2.3348]
[1722261033134,1.02891208,3366.6,3365.7,2.3348]
[1722261033471,3.99942208,3366.5,3365.8,0.23348]
[1722261033689,1.02891208,3366.4,3365.8,0.23348]
[1722261033989,2.97051,3366.5,3365.8,0.23348]
[1722261033990,2.97062,3366.3,3365.8,0.23348]
[1722261034343,2.97029,3366.7,3365.8,0.23348]
[1722261034650,1.02889347,3366.6,3365.9,0.806828]
[1722261034849,2.9702,3366.8,3366.0,0.05940887]
[1722261035084,1.0287971,3366.7,3366.1,0.55]
[1722261035267,5.8572,3368.0,3366.1,0.55]
[1722261035268,2.96979,3367.3,3366.3,2.3947]
[1722261035467,1.02869236,3367.2,3366.4,0.90981207]
[1722261036031,1.02869236,3367.1,3366.4,0.90981207]
[1722261036164,1.02869236,3367.1,3366.5,0.33045121]
[1722261036369,8.82632,3368.0,3366.5,0.33045121]
[1722261036370,2.96939,3367.7,3366.5,0.33045121]
[1722261036608,2.96988,3367.2,3366.6,0.05939987]
[1722261036769,2.96997,3367.1,3366.6,0.05939987]
[1722261036974,2.97009,3366.9,3366.3,2.3947]
[1722261037227,1.02866976,3366.8,3366.3,2.3947]
[1722261037524,1.02866976,3367.0,3366.4,0.05940716]
[1722261037822,2.96966,3367.4,3366.5,0.24541072]
[1722261037966,1.02862119,3367.3,3366.7,2.4792]
[1722261038281,7.31,3368.5,3366.7,2.4792]
[1722261038282,2.96913,3368.0,3366.8,0.33779075]
[1722261038486,2.96956,3367.5,3366.8,0.27840079]
[1722261038744,1.02838778,3367.9,3366.9,0.3351541]
[1722261038904,2.96857,3368.7,3366.9,0.3351541]
[1722261038905,1.02847836,3367.8,3366.9,0.3351541]
[1722261039204,2.96905,3368.1,3366.9,0.3351541]
[1722261039512,1.02840017,3368.0,3367.0,0.28143541]
[1722261039814,2.96912,3368.0,3367.1,0.05938677]
[1722261040119,1.02845578,3367.9,3367.1,0.05938677]
[1722261040281,2.96918,3368.0,3367.1,0.05938677]
[1722261040469,2.96904,3368.1,3367.1,0.05938677]
[1722261041003,2.96921,3367.9,3367.0,0.28143541]
[1722261041225,1.02843035,3368.0,3367.0,0.28143541]
[1722261041226,2.96932,3367.8,3367.0,0.28143541]
[1722261041368,2.96954,3367.6,3366.7,2.4792]
[1722261041569,2.96932,3367.8,3366.7,2.4792]
[1722261042006,2.96913,3368.0,3366.7,2.4792]
[1722261042225,2.96945,3367.7,3366.7,2.4792]
[1722261042376,2.96948,3367.6,3366.8,0.24792]
[1722261042769,2.96958,3367.5,3366.8,0.24792]
[1722261043122,10.716527,3368.6,3366.7,2.4792]
[1722261043269,2.96963,3367.5,3366.7,2.4792]
[1722261043471,2.9697,3367.4,3366.3,2.3073]
[1722261043671,2.9705,3366.5,3365.8,2.3988]
[1722261043888,2.97077,3366.2,3365.8,2.3988]
[1722261044137,2.97035,3366.6,3365.8,2.3988]
[1722261044349,2.9701,3366.9,3365.9,0.29929665]
[1722261044504,2.96998,3367.1,3365.9,0.29929665]
[1722261044710,3.082139,3367.0,3365.9,0.29929665]
[1722261044947,3.0,3367.5,3365.9,0.29929665]
[1722261044948,3.0,3367.5,3365.9,0.23988]
[1722261045095,3.0,3367.5,3365.8,2.3988]
[1722261045096,2.17186191,3367.4,3365.8,2.3988]
[1722261045287,1.14086191,3367.3,3365.9,0.05941641]
[1722261045615,1.031,3367.4,3365.9,0.05941641]
[1722261045616,2.96992,3367.1,3365.9,0.05941641]
[1722261045789,1.55205299,3367.0,3365.9,0.30523805]
[1722261045995,2.97028,3366.7,3365.9,0.30523805]
[1722261046291,4.0007,3367.4,3365.9,0.30523805]
[1722261046292,2.96983,3367.2,3365.9,0.24582164]
[1722261046497,2.97071,3366.2,3365.8,2.3988]
[1722261046698,2.97058,3366.4,3365.8,2.3988]
[1722261047226,2.97064,3366.3,3365.8,2.3988]
[1722261047431,4.00068,3367.4,3365.8,2.3988]
[1722261047629,5.28982446,3367.3,3365.8,2.3988]
[1722261047831,2.97059,3366.4,3365.8,2.3988]
[1722261048037,2.97016,3366.9,3365.8,2.63868]
[1722261048342,2.97079,3366.1,3365.8,2.3988]
[1722261048628,2.97096,3366.0,3365.3,2.3902]
[1722261049048,2.971,3365.9,3365.3,2.3902]
[1722261049227,0.2971,3365.9,3365.3,2.3902]
[1722261049411,2.97141,3365.4,3365.3,2.3902]
[1722261050445,2.9716,3365.2,3364.8,2.2643]
[1722261050750,2.97141,3365.4,3364.8,2.2643]
[1722261051062,2.97133,3365.5,3364.8,2.2643]
[1722261051237,7.31,3366.5,3364.8,2.2643]
[1722261051437,2.97127,3365.6,3364.8,2.2643]
[1722261051605,2.97127,3365.6,3364.2,7.286]
[1722261051606,2.97217,3364.6,3364.3,2.2643]
[1722261051803,2.97123,3365.7,3364.3,2.2643]
[1722261051804,2.97196,3364.8,3364.3,2.2643]
[1722261052112,2.97223,3364.5,3364.3,2.2643]
[1722261052442,2.97212,3364.6,3364.3,2.2643]
[1722261052649,2.97196,3364.8,3364.3,2.2643]
[1722261052846,2.97211,3364.7,3364.3,2.2643]
[1722261053044,0.297211,3364.7,3363.8,2.2643]
[1722261053346,2.97241,3364.3,3363.8,2.2643]
[1722261053559,2.97267,3364.0,3363.8,2.2643]
[1722261054091,2.97273,3363.9,3363.8,2.2643]
[1722261054225,2.97265,3364.0,3363.8,2.2643]
[1722261055240,2.97288,3363.8,3363.3,2.295]
[1722261055465,2.97267,3364.0,3363.3,2.295]
[1722261055670,2.97244,3364.3,3363.4,0.05945781]
[1722261055845,2.97225,3364.5,3363.4,0.05945781]
[1722261056041,2.97225,3364.5,3363.3,2.295]
[1722261056042,7.31,3365.1,3363.5,1.03690578]
[1722261056269,3.138,3365.2,3363.3,2.295]
[1722261056270,7.66338757,3365.0,3363.3,2.295]
[1722261056569,2.97288,3363.8,3363.3,2.295]
[1722261056952,2.97298,3363.7,3363.3,2.295]
[1722261057267,3.0,3364.5,3362.9,7.286]
[1722261057607,5.5949,3364.6,3362.8,2.298]
[1722261057608,2.97313,3363.5,3362.8,2.298]
[1722261057897,2.97313,3363.5,3362.9,0.05946544]
[1722261058062,2.9727,3364.0,3362.9,0.05946544]
[1722261058271,2.97249,3364.2,3363.0,0.23574654]
[1722261058460,2.97276,3363.9,3363.0,0.23574654]
[1722261058665,2.97273,3364.0,3363.0,0.23574654]
[1722261058883,2.97283,3363.8,3363.1,0.05945746]
[1722261059088,2.97311,3363.5,3363.0,0.23574654]
[1722261059289,2.97311,3363.5,3362.8,2.298]
[1722261059497,2.97311,3363.5,3362.9,0.05946404]
[1722261059855,2.97328,3363.3,3362.9,0.05946407]
[1722261060061,2.97311,3363.5,3362.8,2.298]
[1722261060288,3.569584,3364.4,3362.8,2.298]
[1722261060289,2.97334,3363.3,3362.8,2.298]
[1722261060869,2.97362,3362.9,3362.8,2.298]
[1722261061069,2.97304,3363.6,3362.3,9.6648]
[1722261061288,2.97367,3362.9,3362.3,2.3788]
[1722261061473,2.2514,3364.1,3362.3,2.3788]
[1722261061474,2.97329,3363.3,3362.3,2.3788]
[1722261061675,2.97342,3363.2,3362.4,0.23788]
[1722261061885,7.31,3364.0,3362.5,0.05946952]
[1722261061886,2.97303,3363.6,3362.5,0.05946952]
[1722261062194,2.97281,3363.9,3362.5,0.05946952]
[1722261062393,2.97294,3363.7,3362.5,0.77449147]
[1722261062700,2.97321,3363.4,3362.5,0.71502195]
[1722261062869,2.97301,3363.6,3362.6,0.05946586]
[1722261063074,2.97291,3363.7,3362.6,0.05946586]
[1722261063396,0.730678,3364.3,3362.6,0.05946586]
[1722261063569,2.97291,3363.7,3362.7,0.05946582]
[1722261063794,2.97277,3363.9,3362.8,2.4215]
[1722261063976,2.97298,3363.7,3362.9,0.05946578]
[1722261064180,2.97311,3363.5,3362.9,0.05946578]
[1722261064517,0.594609,3363.5,3362.8,2.4215]
[1722261064818,2.97284,3363.8,3362.8,2.4215]
[1722261064819,2.97341,3363.2,3362.8,2.4215]
[1722261064958,2.97295,3363.7,3362.8,2.4215]
[1722261064959,2.97321,3363.4,3362.8,2.4215]
[1722261065297,2.97342,3363.2,3362.8,2.4215]
[1722261065503,2.97294,3363.7,3362.9,0.05947286]
[1722261065673,2.97286,3363.8,3362.9,0.05947286]
[1722261065875,2.9731,3363.5,3362.8,2.4215]
[1722261066075,2.97332,3363.3,3362.8,2.4215]
[1722261066684,2.97298,3363.7,3362.8,2.4215]
[1722261066884,2.97353,3363.0,3362.3,9.6347]
[1722261067083,2.97336,3363.2,3362.3,9.6347]
[1722261067290,2.97334,3363.3,3362.3,9.6347]
[1722261067461,2.97334,3363.3,3361.7,2.97]
[1722261067462,2.97396,3362.6,3361.7,10.256]
[1722261067665,2.97414,3362.4,3361.8,2.3487]
[1722261067973,4.507423,3363.3,3361.8,2.3487]
[1722261068162,2.97412,3362.4,3361.8,2.3487]
[1722261068362,2.97412,3362.4,3361.7,2.97]
[1722261068363,2.97442,3362.0,3361.7,2.97]
[1722261068565,2.97392,3362.6,3361.7,2.97]
[1722261068828,2.9746,3361.8,3361.3,2.4436]
[1722261068958,3.138,3362.8,3361.3,2.4436]
[1722261069159,2.97486,3361.5,3361.3,2.4436]
[1722261069363,2.97486,3361.5,3360.6,2.3228]
[1722261069364,2.97505,3361.3,3360.6,2.3228]
[1722261069667,2.4657,3361.6,3359.8,2.2992]
[1722261070002,2.4657,3361.6,3360.1,0.0595111]
[1722261070186,2.97497,3361.4,3359.8,2.2992]
[1722261070390,2.97497,3361.4,3359.8,2.52912]
[1722261070391,2.97565,3360.7,3359.8,2.52912]
[1722261070598,2.97562,3360.7,3359.8,2.52912]
[1722261070767,2.97549,3360.8,3359.8,2.52912]
[1722261071082,2.97513,3361.2,3359.9,0.05952191]
[1722261071276,2.97493,3361.5,3360.0,2.97616]
[1722261071477,2.97493,3361.5,3360.1,0.05951108]
[1722261071703,2.97504,3361.3,3360.1,0.05951108]
[1722261071907,2.97493,3361.5,3360.1,0.61830439]
[1722261072229,2.97501,3361.4,3360.1,0.55879331]
[1722261072510,2.9753,3361.0,3359.9,3.0]
[1722261072764,2.97554,3360.8,3359.8,2.2992]
[1722261073249,2.97566,3360.6,3359.8,2.2992]
[1722261073456,2.97566,3360.6,3359.8,2.52912]
[1722261073607,2.97557,3360.7,3359.8,2.52912]
[1722261073829,2.97568,3360.6,3359.8,2.2992]
[1722261074116,2.97568,3360.6,3359.3,2.97]
[1722261074117,2.97589,3360.4,3359.3,2.2679]
[1722261074317,2.97569,3360.6,3359.3,2.2679]
[1722261074631,2.9759,3360.4,3359.3,2.2679]
[1722261074833,2.9761,3360.1,3359.3,2.2679]
[1722261075025,2.97569,3360.6,3359.3,2.2679]
[1722261075348,2.97579,3360.5,3359.3,2.32743004]
[1722261075544,3.570985,3360.4,3359.3,2.32743004]
[1722261075705,2.9755,3360.8,3359.3,2.32743004]
[1722261075903,2.97575,3360.5,3359.3,2.32743004]
[1722261078840,5.6255,3361.6,3360.0,3.02503]
[1722261079031,2.97593,3360.3,3359.2,2.97]
[1722261079231,0.297593,3360.2,3359.2,2.97]
[1722261079403,2.97574,3360.5,3359.2,3.02953494]
[1722261079600,2.97594,3360.3,3359.2,3.02953494]
[1722261080044,2.97586,3360.4,3359.2,3.02953494]
[1722261080343,2.9759,3360.4,3359.0,2.4773]
[1722261080516,2.97635,3359.9,3359.0,3.02203034]
[1722261080717,2.97612,3360.1,3359.0,3.02203034]
[1722261081043,2.97567,3360.6,3359.1,0.05953296]
[1722261081247,2.97598,3360.3,3359.1,0.05953296]
[1722261081460,3.0,3361.1,3359.1,0.05953296]
[1722261081461,2.97574,3360.5,3359.1,0.05953296]
[1722261081752,2.97603,3360.2,3359.2,0.30815633]
[1722261081905,2.97603,3360.2,3359.3,0.05952616]
[1722261082106,0.3,3361.0,3359.3,0.05952616]
[1722261082107,2.97567,3360.6,3359.3,0.05952616]
[1722261082334,0.3,3361.0,3359.5,2.3184]
[1722261082335,2.97557,3360.7,3359.5,2.3184]
[1722261082548,2.97557,3360.7,3359.6,0.05952216]
[1722261082846,2.10878319,3365.9,3359.6,0.05952216]
[1722261082847,2.97536,3361.0,3359.6,0.05952216]
[1722261083047,2.97478,3361.6,3359.7,1.31680104]
[1722261083048,2.97539,3360.9,3359.7,1.31680104]
[1722261083251,2.97524,3361.1,3359.8,0.05951677]
[1722261083434,2.9749,3361.5,3359.9,2.3184]
[1722261083752,2.97425,3362.2,3360.5,2.3184]
[1722261083908,2.97451,3361.9,3360.6,0.05950191]
[1722261084123,2.97451,3361.9,3360.5,8.29414]
[1722261084124,2.9746,3361.8,3360.7,0.05950164]
[1722261084330,2.974,3362.5,3360.7,0.5972918]
[1722261084331,2.97468,3361.7,3360.7,0.5972918]
[1722261084609,2.97468,3361.7,3360.8,0.05950168]
[1722261084610,2.97477,3361.7,3360.8,0.05950168]
[1722261084908,2.97423,3362.3,3360.8,0.05950168]
[1722261085114,10.773,3362.8,3360.8,0.05950168]
[1722261085115,2.97442,3362.0,3360.9,0.35972918]
[1722261085328,2.97425,3362.2,3361.0,0.05949762]
[1722261085646,2.97425,3362.2,3361.1,2.3184]
[1722261085977,2.97439,3362.1,3361.2,0.05949421]
[1722261086263,2.97417,3362.3,3361.2,0.05949421]
[1722261086473,2.974,3362.5,3361.2,0.05949421]
[1722261087154,2.97424,3362.2,3361.2,0.05949421]
[1722261087368,2.97439,3362.1,3361.2,0.05949421]
[1722261087585,11.38209401,3363.2,3361.2,0.05949421]
[1722261087586,2.97421,3362.3,3361.2,0.05949421]
[1722261087707,2.97423,3362.3,3361.3,0.53778942]
[1722261088025,2.9743,3362.2,3361.4,0.05949052]
[1722261088450,2.97416,3362.3,3361.4,0.35105851]
[1722261088657,2.97365,3362.9,3361.4,0.35105851]
[1722261088893,2.97416,3362.3,3361.4,0.29156799]
[1722261089012,2.97419,3362.3,3361.5,0.05949052]
[1722261089213,2.97406,3362.4,3361.5,0.05949052]
[1722261089857,2.97433,3362.1,3361.5,0.05949052]
[1722261090360,2.97463,3361.8,3361.1,2.3184]
[1722261090669,2.97448,3362.0,3360.3,4.47589]
[1722261090670,2.97444,3362.0,3360.5,2.3637]
[1722261090811,2.97444,3362.0,3360.7,0.78810433]
[1722261090812,0.297448,3362.0,3360.7,0.78810433]
[1722261091008,5.5267,3362.4,3360.7,0.78810433]
[1722261091009,2.9746,3361.8,3360.7,0.05950433]
[1722261091320,2.97465,3361.8,3360.7,0.05950433]
[1722261091556,2.97502,3361.4,3360.5,2.3637]
[1722261091757,2.97516,3361.2,3360.5,2.3637]
[1722261091956,2.97502,3361.4,3360.5,2.60007]
[1722261092196,2.97502,3361.4,3360.6,0.05950774]
[1722261092489,3.688,3362.3,3360.5,2.60007]
[1722261092490,2.97504,3361.3,3360.5,2.60007]
[1722261092671,2.97454,3361.9,3360.5,2.3637]
[1722261092992,2.97435,3362.1,3360.6,0.05950813]
[1722261093195,5.43369,3362.9,3360.8,2.4034]
[1722261093196,2.97419,3362.3,3360.8,2.4034]
[1722261093490,7.31,3363.1,3361.1,2.4034]
[1722261093491,10.2835,3363.1,3361.1,2.4034]
[1722261093645,2.97414,3362.4,3361.2,0.05948833]
[1722261093841,6.601,3363.3,3361.3,0.05948833]
[1722261094091,2.97433,3362.1,3361.1,2.4034]
[1722261094395,2.97417,3362.3,3361.2,0.54034]
[1722261094698,3.138,3362.9,3361.1,2.4034]
[1722261094898,2.97451,3361.9,3361.1,2.4034]
[1722261095048,2.9746,3361.8,3361.1,2.94374]
[1722261095481,6.11201,3362.5,3361.1,2.4034]
[1722261095701,2.97482,3361.6,3361.1,2.4034]
[1722261096172,2.97482,3361.6,3360.7,0.53990281]
[1722261096173,2.97496,3361.4,3360.7,0.53990281]
[1722261096744,2.97446,3362.0,3360.7,0.53990281]
[1722261096745,2.97493,3361.5,3360.7,0.53990281]
[1722261096981,2.9748,3361.6,3360.8,1.07531558]
[1722261097148,2.97445,3362.0,3360.8,1.07531558]
[1722261097348,2.97456,3361.9,3360.8,1.07531558]
[1722261097649,3.0,3362.4,3360.8,1.07531558]
[1722261097650,2.97474,3361.7,3360.9,0.45423966]
[1722261097851,2.97461,3361.8,3360.9,0.45423966]
[1722261098390,2.97418,3362.3,3360.6,2.3322]
[1722261098592,6.138,3362.4,3360.6,2.3322]
[1722261098593,2.97521,3361.1,3360.6,2.3322]
[1722261098956,2.4824,3362.1,3360.6,2.3322]
[1722261098957,2.9753,3361.0,3360.6,2.3322]
[1722261099295,2.97553,3360.8,3360.1,2.2898]
[1722261099510,2.97571,3360.6,3360.1,2.2898]
[1722261100007,6.11283,3361.6,3360.1,2.2898]
[1722261100210,6.11283,3361.6,3360.0,7.286]
[1722261100211,3.138,3361.2,3360.0,7.286]
[1722261100491,2.97597,3360.3,3360.0,7.286]
[1722261100705,2.97592,3360.3,3359.6,2.4225]
[1722261101495,2.97601,3360.2,3359.6,2.4225]
[1722261101694,2.97578,3360.5,3359.6,2.4225]
[1722261102007,2.97584,3360.4,3359.7,0.24225]
[1722261102210,2.9754,3360.9,3359.6,2.4225]
[1722261102345,2.97642,3359.8,3359.3,7.286]
[1722261102663,3.138,3360.4,3358.8,3.39e-06]
[1722261102861,2.97652,3359.7,3358.8,3.39e-06]
[1722261103068,2.97626,3360.0,3358.8,3.39e-06]
[1722261103514,2.97628,3359.9,3358.8,3.39e-06]
[1722261103791,2.97679,3359.4,3358.8,3.39e-06]
[1722261104285,2.97681,3359.3,3358.8,3.39e-06]
[1722261104491,0.81125718,3360.2,3358.8,3.39e-06]
[1722261104492,2.97652,3359.7,3358.8,3.39e-06]
[1722261104695,2.97654,3359.6,3358.8,0.24579373]
[1722261105098,2.97664,3359.5,3358.8,0.24579373]
[1722261105522,2.97654,3359.6,3358.8,0.24579373]
[1722261105731,2.97663,3359.5,3358.8,0.24579373]
[1722261105937,2.97663,3359.5,3358.8,3.39e-06]
[1722261106231,0.62227772,3360.1,3358.8,3.39e-06]
[1722261106434,2.97666,3359.5,3358.8,3.39e-06]
[1722261107611,2.97687,3359.3,3358.8,3.39e-06]
[1722261108126,2.97629,3359.9,3358.8,3.39e-06]
[1722261108127,2.97651,3359.7,3358.8,3.39e-06]
[1722261108295,2.97603,3360.2,3358.8,0.05954332]
[1722261108498,2.97603,3360.2,3358.8,3.58628265]
[1722261108712,4.10636982,3360.8,3358.9,2.2855]
[1722261108713,2.97575,3360.5,3358.9,2.2855]
[1722261109024,2.97556,3360.8,3359.3,2.97675]
[1722261109227,2.97535,3361.0,3359.4,0.05952247]
[1722261109451,2.97589,3360.4,3359.4,0.29402472]
[1722261109626,2.97572,3360.6,3359.4,0.29402472]
[1722261109783,2.97576,3360.5,3359.4,0.29402472]
[1722261109989,2.97563,3360.7,3359.4,0.29402472]
[1722261110230,2.97539,3360.9,3359.6,2.256]
[1722261110484,2.97548,3360.8,3359.7,0.05952002]
[1722261110768,2.97548,3360.8,3359.6,5.256]
[1722261110769,2.97575,3360.5,3359.6,5.256]
[1722261110925,2.97583,3360.4,3359.6,5.256]
[1722261111121,2.97583,3360.4,3359.6,2.256]
[1722261111471,2.97608,3360.2,3359.6,2.256]
[1722261111632,3.138,3361.2,3359.6,2.256]
[1722261111633,2.97521,3361.2,3359.6,2.256]
[1722261111969,2.97574,3360.6,3359.7,0.31056619]
[1722261112143,2.97554,3360.8,3359.7,0.37009099]
[1722261112346,2.97566,3360.6,3359.7,0.31056619]
[1722261112555,2.97582,3360.5,3359.7,0.31056619]
[1722261112762,2.97589,3360.4,3359.7,0.31056619]
[1722261113066,2.9761,3360.1,3359.6,2.256]
[1722261113358,2.97592,3360.3,3359.6,2.256]
[1722261113719,2.97603,3360.2,3359.6,2.256]
[1722261114120,2.97569,3360.6,3359.6,2.256]
[1722261114317,2.97571,3360.6,3359.6,2.256]
[1722261114767,2.9758,3360.5,3359.6,2.256]
[1722261115264,2.97541,3360.9,3359.6,2.256]
[1722261115460,2.97591,3360.4,3359.6,2.4816]
[1722261115832,2.97567,3360.6,3359.6,2.4816]
[1722261116248,2.97551,3360.8,3359.6,2.4816]
[1722261116449,2.97518,3361.2,3359.7,2.97639]
[1722261116692,2.97518,3361.2,3359.6,2.4816]
[1722261116693,2.97518,3361.2,3359.8,3.58163359]
[1722261116892,2.97577,3360.5,3359.8,0.545799]
[1722261117165,2.97593,3360.3,3359.6,2.4816]
[1722261117383,2.97593,3360.3,3359.6,2.256]
[1722261117545,2.97616,3360.1,3359.6,2.256]
[1722261117738,2.97608,3360.2,3359.6,2.256]
[1722261117955,2.97613,3360.1,3359.6,2.256]
[1722261118182,2.97646,3359.7,3359.1,2.2645]
[1722261118390,3.138,3360.7,3359.1,2.2645]
[1722261118391,2.97599,3360.3,3359.1,2.2645]
[1722261118542,3.08802402,3360.2,3359.1,2.2645]
[1722261118745,2.97651,3359.7,3359.1,2.2645]
[1722261118940,2.97632,3359.9,3359.1,2.2645]
[1722261119139,2.97605,3360.2,3359.1,2.2645]
[1722261119344,2.97654,3359.7,3359.1,2.2645]
[1722261119545,2.97677,3359.4,3358.6,2.426]
[1722261120246,2.9768,3359.4,3358.6,2.426]
[1722261120794,2.97687,3359.3,3358.6,2.426]
[1722261120954,2.97649,3359.7,3358.6,2.426]
[1722261121161,2.97646,3359.7,3358.8,1.03074111]
[1722261121347,2.97646,3359.7,3358.8,0.97120373]
[1722261121744,2.97636,3359.8,3358.8,0.97120373]
[1722261121972,8.8413282,3360.9,3358.8,0.97120373]
[1722261121973,2.97618,3360.1,3358.8,1.03074452]
[1722261122182,2.97577,3360.5,3358.9,2.4384]
[1722261122500,2.97607,3360.2,3359.0,0.05953032]
[1722261122659,2.9759,3360.4,3359.1,0.64463341]
[1722261122870,2.97578,3360.5,3359.1,0.64463341]
[1722261122871,2.97581,3360.5,3359.3,2.2516]
[1722261123190,2.97581,3360.5,3359.4,0.0595243]
[1722261123593,2.97564,3360.7,3359.4,0.0595243]
[1722261123758,5.95129,3360.7,3359.4,0.0595243]
[1722261124140,2.97577,3360.5,3359.5,0.82879843]
[1722261124252,2.97577,3360.5,3359.6,0.05952438]
[1722261124950,2.97593,3360.3,3359.5,0.88832288]
[1722261125152,2.97592,3360.3,3359.5,0.82879843]
[1722261125404,2.97592,3360.3,3359.3,2.2516]
[1722261125405,1.03087009,3360.2,3359.3,2.2516]
[1722261125596,2.97592,3360.3,3359.3,2.2516]
[1722261126196,2.97603,3360.2,3359.3,2.2516]
[1722261127406,2.97585,3360.4,3359.3,2.2516]
[1722261127609,2.97602,3360.2,3359.4,0.53111305]
[1722261127904,1.03075743,3360.1,3359.4,0.53111305]
[1722261128115,1.03075743,3360.1,3359.3,2.2516]
[1722261128281,2.97623,3360.0,3359.3,2.2516]
[1722261128478,1.788,3360.9,3359.3,2.2516]